Body,Body Name,Date,Transaction Number,Amount,Supplier Name,Supplier ID,Expense Area,Expense Type,Expense Code,Extended Description,Service Code,Service Label,Service Division Label,Service Division Code
http://statistics.data.gov.uk/id/local-authority/16UF,Eden District Council,06/11/2015,146259,894.9,PENRITH PLAYERS THEATRE LTD,PEN002,Communities Manager,Commission,7504,"TICKET SALES MARTHA, JOSIE, ELVIS",TAPTIC,Penrith TIC Trading Account,09164,Penrith TIC - Penrith Players
http://statistics.data.gov.uk/id/local-authority/16UF,Eden District Council,06/11/2015,146315,750,FLORENCE MADDEN ASSOCIATES,FLO004,Human Resources Manager,Workforce Development Plan Activity,2229,TRAINING COURSE 11-13 NOV & 17-18 DEC 15,STADEV,Staff Development,00222,Central Training Budget
http://statistics.data.gov.uk/id/local-authority/16UF,Eden District Council,06/11/2015,146340,5766,ENTERPRISE PROSPECTS LTD,ENT004,Chief Executive's,Agency Staff,0003,R HOOPER OCTOBER 2015,CHIEXE,Chief Executive,00050,Chief Executive
http://statistics.data.gov.uk/id/local-authority/16UF,Eden District Council,06/11/2015,144948,-4489.02,ROYAL MAIL NW,ROY001,Financial Services Manager,Balance Sheet entry BS,6003,CREDIT BUSINESS MAIL CANCEL J43958945,HOLD A/C'S,Holding Accounts,10304,Parliam Election Exp
http://statistics.data.gov.uk/id/local-authority/16UF,Eden District Council,06/11/2015,145540,1129.64,ROYAL MAIL NW,ROY001,Legal Services Manager,Postages,2054,RESPONSE PLUS SERVICE,REGELE,Register of Electors,01001,Register of Electors
http://statistics.data.gov.uk/id/local-authority/16UF,Eden District Council,06/11/2015,145720,1161.77,ROYAL MAIL NW,ROY001,Revenue/Benefits Manager,Postages,2054,POSTAGE 19/08/15 - 15/09/15,REVBEN,Revenue & Benefits,00106,Revenues
http://statistics.data.gov.uk/id/local-authority/16UF,Eden District Council,06/11/2015,145972,1004.4,ROYAL MAIL NW,ROY001,Legal Services Manager,Postages,2054,RESPONSE PLUS SERVICE,REGELE,Register of Electors,01001,Register of Electors
http://statistics.data.gov.uk/id/local-authority/16UF,Eden District Council,06/11/2015,146120,9920.79,NORTH COUNTRY LEISURE,NCL001,Financial Services Manager,Balance Sheet entry BS,6003,VALUATION SEPTEMBER 2015,ARTLEI,Arts and Leisure,10181,GF Capital Receipts
http://statistics.data.gov.uk/id/local-authority/16UF,Eden District Council,06/11/2015,146190,644,DENISE CALVERT LTD,CAL019,Revenue/Benefits Manager,Supplies general,2015,2 DAYS W/E 26/10/15,CTXBEN,Council Tax Benefits,01164,Local Council Tax Scheme
http://statistics.data.gov.uk/id/local-authority/16UF,Eden District Council,06/11/2015,146195,1256.52,ROYAL MAIL NW,ROY001,Revenue/Benefits Manager,Postages,2054,POSTAGE 16/09/15 - 13/10/15,REVBEN,Revenue & Benefits,00106,Revenues
http://statistics.data.gov.uk/id/local-authority/16UF,Eden District Council,06/11/2015,146233,638,ASSOCIATION OF ELECTORAL ADMINISTRATION,ASS003,Legal Services Manager,Training Expenses,0060,IDE-PCC TRAINING X 3,REGELE,Register of Electors,01001,Register of Electors
http://statistics.data.gov.uk/id/local-authority/16UF,Eden District Council,06/11/2015,146254,557.57,PRINT IMAGE FACILITIES LLP,PRI014,Legal Services Manager,Postages,2054,POSTAGE,REGELE,Register of Electors,01001,Register of Electors
http://statistics.data.gov.uk/id/local-authority/16UF,Eden District Council,06/11/2015,146332,2200,GREENFIELDS HEAT & POWER LTD,GRE035,Engineering Manager,Building Maintenance,1000,REPLACE GAS BOILER K/S TIC,LANDMA,Land Management,01007,Land Management
http://statistics.data.gov.uk/id/local-authority/16UF,Eden District Council,06/11/2015,146346,500,KAREN MACDOUGALL MA DIP ARCH,MCD001,Communities Manager,Other charges for services,2047,LOTC / BIG DRAW,MUSEUM,Museum,02089,Education programme
http://statistics.data.gov.uk/id/local-authority/16UF,Eden District Council,13/11/2015,146418,650,CHRIS WAKEFIELD TREE SVCS,CHR001,Engineering Manager,GM External Contractors,1080,PORTHOUSE RD WETHERIGGS MAPLE,PARKOS,Parks and Open Spaces,02127,Dangerous trees
http://statistics.data.gov.uk/id/local-authority/16UF,Eden District Council,13/11/2015,146420,750,CHARTERED INSTITUTE OF ENVIRONMENTAL HEALTH,CIE002,Human Resources Manager,Advertising,0050,ONLINE AD EHO OFFICER,CENTRA,Central Expenses,00208,Staff Recruitment
http://statistics.data.gov.uk/id/local-authority/16UF,Eden District Council,13/11/2015,146424,2109.04,INSIGHT DIRECT (UK) LTD,INS014,Information Technology Manager,Supplies general,2015,IT EQUIPMENT,COMMEM,Committee and Member Costs,01081,Member I T Costs
http://statistics.data.gov.uk/id/local-authority/16UF,Eden District Council,13/11/2015,146428,2408.7,IT PROFESSIONAL SERVICES LTD,ITP001,Information Technology Manager,Software � maintenance,2067,RSA AUTH MANAGER BASE,INFTEC,Information Technology,00102,Information Technology
http://statistics.data.gov.uk/id/local-authority/16UF,Eden District Council,13/11/2015,146450,660,THE CUMBRIA CLOCK COMPANY,CUM026,Engineering Manager,Building Maintenance,1000,ANNUAL MAINTENANCE OF PUBLIC CLOCKS,PROAME,Provision of Ameneties,02255,M'ce of Public Clocks
http://statistics.data.gov.uk/id/local-authority/16UF,Eden District Council,13/11/2015,146455,610.2,CUMBERLAND AND WESTMORLAND HERALD,CUM001,Communities Manager,Professional fees,2045,DEFRA LOCAL DEVELOPMENT,EDEVPR,Economic Development and Promotion,02300,Food and Farming Enterprise Zone
http://statistics.data.gov.uk/id/local-authority/16UF,Eden District Council,13/11/2015,146499,624,ELECTRICITY NORTH WEST LTD,ELE005,Engineering Manager,Professional fees,2045,LAMP ADJ 10 CHAPEL GARTH WARCOP A7,FOOLIG,Footway Lighting,02258,Footway lighting
http://statistics.data.gov.uk/id/local-authority/16UF,Eden District Council,13/11/2015,146501,2650,BLUE JAM,BLU003,Communities Director,Promotions,2081,DELIVERY HALLOWEEN FESTIVAL,EDEVPR,Economic Development and Promotion,02003,Economic Promotion - BRRS
http://statistics.data.gov.uk/id/local-authority/16UF,Eden District Council,13/11/2015,146248,555,IAN CANNON LTD,CAN004,Engineering Manager,Bank-Refurbishment,2009,FENCING CULGAITH BRING SITE,RECYCL,Recycling,03047,Recycling
http://statistics.data.gov.uk/id/local-authority/16UF,Eden District Council,13/11/2015,146356,624,ELECTRICITY NORTH WEST LTD,ELE005,Engineering Manager,FL External Contractors,3303,LAMP DISCONNECTION RIDDINGS BECK BRIDGE,FOOLIG,Footway Lighting,02258,Footway lighting
http://statistics.data.gov.uk/id/local-authority/16UF,Eden District Council,13/11/2015,146357,624,ELECTRICITY NORTH WEST LTD,ELE005,Engineering Manager,FL External Contractors,3303,LAMP DISCONNECTION HARTLEY,FOOLIG,Footway Lighting,02258,Footway lighting
http://statistics.data.gov.uk/id/local-authority/16UF,Eden District Council,13/11/2015,146358,624,ELECTRICITY NORTH WEST LTD,ELE005,Engineering Manager,FL External Contractors,3303,LAMP DISCONNECTION CHURCH BROUGH,FOOLIG,Footway Lighting,02258,Footway lighting
http://statistics.data.gov.uk/id/local-authority/16UF,Eden District Council,13/11/2015,146359,624,ELECTRICITY NORTH WEST LTD,ELE005,Engineering Manager,FL External Contractors,3303,LAMP DISCONNECTION MORLAND,FOOLIG,Footway Lighting,02258,Footway lighting
http://statistics.data.gov.uk/id/local-authority/16UF,Eden District Council,13/11/2015,146360,624,ELECTRICITY NORTH WEST LTD,ELE005,Engineering Manager,FL External Contractors,3303,LAMP DISCONNECTION KIRKBY THORE,FOOLIG,Footway Lighting,02258,Footway lighting
http://statistics.data.gov.uk/id/local-authority/16UF,Eden District Council,13/11/2015,146361,926,ELECTRICITY NORTH WEST LTD,ELE005,Engineering Manager,Building works,5502,LAMP TRANSFER OPP ST ANDREWS CHURCH,FOOLIG,Footway Lighting,06149,Cap Footway Lighting
http://statistics.data.gov.uk/id/local-authority/16UF,Eden District Council,13/11/2015,146362,926,ELECTRICITY NORTH WEST LTD,ELE005,Engineering Manager,Building works,5502,LAMP TRANSFER KINGS MEABURN,FOOLIG,Footway Lighting,06149,Cap Footway Lighting
http://statistics.data.gov.uk/id/local-authority/16UF,Eden District Council,13/11/2015,146363,926,ELECTRICITY NORTH WEST LTD,ELE005,Engineering Manager,Building works,5502,LAMP TRANSFER KINGS MEABURN A7,FOOLIG,Footway Lighting,06149,Cap Footway Lighting
http://statistics.data.gov.uk/id/local-authority/16UF,Eden District Council,13/11/2015,146406,4073.29,CUMBRIA WASTE RECYCLING LTD,CUM022,Engineering Manager,material price fluctuations,3604,F-06-15/16,RECYCL,Recycling,03047,Recycling
http://statistics.data.gov.uk/id/local-authority/16UF,Eden District Council,13/11/2015,146410,1578.1,CUMBRIA COUNTY COUNCIL,CCC002,Engineering Manager,Professional fees,2045,AUGUST 2015 SEARCHES,LANDCH,Land Charges,01002,Land Charges
http://statistics.data.gov.uk/id/local-authority/16UF,Eden District Council,13/11/2015,146411,2497.8,CUMBRIA COUNTY COUNCIL,CCC002,Engineering Manager,Professional fees,2045,SEARCHES JULY 2015,LANDCH,Land Charges,01002,Land Charges
http://statistics.data.gov.uk/id/local-authority/16UF,Eden District Council,13/11/2015,146412,-1260,CUMBRIA COUNTY COUNCIL,CCC002,Engineering Manager,Professional fees,2045,CREDIT RE INV 0270443 AUG TOTAL INCORRECT,LANDCH,Land Charges,01002,Land Charges
http://statistics.data.gov.uk/id/local-authority/16UF,Eden District Council,13/11/2015,146415,900,ALSTON TOWN HALL TRUSTEES,ALS003,Engineering Manager,Rent,1028,RENT JUL/AUG/SEPT 2015,COMDEV,Community Development & Engagement,02064,Alston Council Centre - Building
http://statistics.data.gov.uk/id/local-authority/16UF,Eden District Council,13/11/2015,146416,795,INSIDE HOUSING,INS022,Human Resources Manager,Advertising,0050,ONLINE RECRUITMENT,CENTRA,Central Expenses,00208,Staff Recruitment
http://statistics.data.gov.uk/id/local-authority/16UF,Eden District Council,13/11/2015,146422,16136.72,AMEY PLC,TFE001,Engineering Manager,GM INSPECTIONS & MAINTENANCE,1089,M-GM43,CLCHYD,Closed Church Yards,02246,War Memorials
http://statistics.data.gov.uk/id/local-authority/16UF,Eden District Council,13/11/2015,146423,1110.95,UNITED UTILITIES WATER LTD,UNI008,Engineering Manager,Water charges � metered,1032,PCS BROAD CLOSE  24.07.15-22.10.15,PUBCON,Public Conveniences,02282,Appleby Broad Close Public Convenience
http://statistics.data.gov.uk/id/local-authority/16UF,Eden District Council,13/11/2015,146425,3167.11,PPM LTD,PPM001,Environmental Services,Capital grants,5505,FINAL PAYMENT  PENRITH,MEREGR,1996 Mandatory Renovation Grants,06035,Disabled Facility Grants
http://statistics.data.gov.uk/id/local-authority/16UF,Eden District Council,13/11/2015,146432,1001.25,M TAYLOR ASSOCIATES LTD,TAY017,Human Resources Manager,Workforce Development Plan Activity,2229,HR SUPPORT OCTOBER 15,STADEV,Staff Development,00222,Central Training Budget
http://statistics.data.gov.uk/id/local-authority/16UF,Eden District Council,13/11/2015,146433,3609.5,redacted information,CRO009,Environmental Services,Decent Homes Grants,5524,INTERIM PAYMENT ,DIREGR,1996 Discretionary Renovation Grants,06034,1996 Discretionary Renovation Grants
http://statistics.data.gov.uk/id/local-authority/16UF,Eden District Council,13/11/2015,146438,3375,LEEDS BECKETT UNIVERSITY,LEE002,Human Resources Manager,Training Expenses,0060, 77124220 2015/16,STADEV,Staff Development,00225,Staff Training Communities
http://statistics.data.gov.uk/id/local-authority/16UF,Eden District Council,13/11/2015,146451,2500,LOWTHER PARISH HALL COMMITTEE,LOW001,Communities Manager,Balance Sheet entry BS,6003,ECF60 EDEN COMM FUND,comfnd,Community Fund,10400,Community Fund
http://statistics.data.gov.uk/id/local-authority/16UF,Eden District Council,13/11/2015,146453,620.13,NORTH COUNTRY LEISURE,NCL001,Communities Manager,Promotions,2081,LUNCHES FOR 160 SUNDAY 20/9/15,ARTLEI,Arts and Leisure,02370,Triathlon Day
http://statistics.data.gov.uk/id/local-authority/16UF,Eden District Council,13/11/2015,146464,3705.75,MLL TELECOM LTD,MLL001,Information Technology Manager,IT Contracts & Maintenance,2062,RENTAL TOWN HALL/MANSION HOUSE OCT/DEC15,INFTEC,Information Technology,00102,Information Technology
http://statistics.data.gov.uk/id/local-authority/16UF,Eden District Council,13/11/2015,144766,719.96,WESTMORLAND FIRE & SECURITY,WES001,Engineering Manager,Building Maintenance,1000,INVESTIGATE /REPLACE SMOKE DETECTORS,CEMETE,Cemeteries,02236,Penrith Cemetery Chapel
http://statistics.data.gov.uk/id/local-authority/16UF,Eden District Council,13/11/2015,145628,1470.43,AMEY PLC,TFE001,Engineering Manager,Contingency - service contracts,2149,GM70,CEMETE,Cemeteries,02229,Alston Moor Cemetery
http://statistics.data.gov.uk/id/local-authority/16UF,Eden District Council,13/11/2015,146196,880.35,RENTOKIL INITIAL PEST CONTROL,REN009,Environmental Services,Pest Control,3400,PESTS NOVEMBER 2015,PESCON,Pest Control,03043,Pest Control
http://statistics.data.gov.uk/id/local-authority/16UF,Eden District Council,13/11/2015,146219,925,CIPFA,CIP001,Engineering Manager,Professional fees,2045,ASSET MANAGEMENT PLANNING NETWORK 15/16,LANDMA,Land Management,01007,Land Management
http://statistics.data.gov.uk/id/local-authority/16UF,Eden District Council,13/11/2015,146256,1260,CUMBRIA COUNTY COUNCIL,CCC002,Engineering Manager,Professional fees,2045,JUL/AUG/SEP QUARTERLY COMMONS SEARCHES,LANDCH,Land Charges,01002,Land Charges
http://statistics.data.gov.uk/id/local-authority/16UF,Eden District Council,13/11/2015,146314,555.57,HP INC UK LIMITED,HEW006,Information Technology Manager,Printers Contract,2059,SMART SERVICES SEPTEMBER 2015,INFTEC,Information Technology,00102,Information Technology
http://statistics.data.gov.uk/id/local-authority/16UF,Eden District Council,13/11/2015,146331,2813.64,VODAFONE LTD,VOD003,Information Technology Manager,Governement Connect,2183,SERVICES,INFTEC,Information Technology,00102,Information Technology
http://statistics.data.gov.uk/id/local-authority/16UF,Eden District Council,13/11/2015,146333,1857.5,CAPITA PROPERTY & INFRASTRUCTURE LTD,CAP002,Planning Services,Professional fees,2045,ARBORICULTURAL PROFESSIONAL SERVICES OCT,CONSER,Environmental Enhancement & Conservation,03012,Aboricutural Advice
http://statistics.data.gov.uk/id/local-authority/16UF,Eden District Council,13/11/2015,146334,2055.68,EDEN HOUSING ASSOCIATION LTD,EDE001,Environmental Services,Hire of premises,1029,HOMELESSNESS RECHARGES JUL/SEPT 2015,HOMLES,Homelessness,02296,Homelessness Grant Fund
http://statistics.data.gov.uk/id/local-authority/16UF,Eden District Council,20/11/2015,146593,730,ANDIDRAIN LTD,AND002,Engineering Manager,Land Drainage Investigations,2191,DRAIN JETTING AT 2 SITES,LANDMA,Land Management,01007,Land Management
http://statistics.data.gov.uk/id/local-authority/16UF,Eden District Council,20/11/2015,146595,2400,H&H REEDS PRINTERS LTD,REE001,Planning Services,Printing and stationary,2037,LARGE FORMAT MAP,LOPLPO,Local Plans & Policy,03004,Eden Local Plan
http://statistics.data.gov.uk/id/local-authority/16UF,Eden District Council,20/11/2015,146604,569,THE WAREHOUSE.COM LTD,THE009,Human Resources Manager,Workforce Development Plan Activity,2229,SHREDDER,STADEV,Staff Development,00222,Central Training Budget
http://statistics.data.gov.uk/id/local-authority/16UF,Eden District Council,20/11/2015,146605,569,THE WAREHOUSE.COM LTD,THE009,Corporate Services Manager,Microfilming supplies,2024,SHREDDER,CENTRA,Central Expenses,00203,Archiving
http://statistics.data.gov.uk/id/local-authority/16UF,Eden District Council,20/11/2015,146628,2560,AMEY PLC,TFE001,Engineering Manager,Planned Maintenance,1016,ELECTRICAL WORKS AT LONDON ROAD DEPOT,LANDMA,Land Management,01007,Land Management
http://statistics.data.gov.uk/id/local-authority/16UF,Eden District Council,20/11/2015,146637,500,CUMBERLAND AND WESTMORLAND HERALD,CUM001,Engineering Manager,Advertising,2086,winter droving,PROAME,Provision of Ameneties,02252,Provision of Amenities
http://statistics.data.gov.uk/id/local-authority/16UF,Eden District Council,20/11/2015,146643,1463,CIVICA UK LTD,CIV002,Information Technology Manager,Software � maintenance,2067,FASTWEB INST. SERVICES 17/9/15,INFTEC,Information Technology,00102,Information Technology
http://statistics.data.gov.uk/id/local-authority/16UF,Eden District Council,20/11/2015,146213,1800,CIVICA UK LTD,CIV002,Revenue/Benefits Manager,Supplies general,2015,REVENUES CIVICA ON DEMAND JUNE 15,CTXBEN,Council Tax Benefits,01164,Local Council Tax Scheme
http://statistics.data.gov.uk/id/local-authority/16UF,Eden District Council,20/11/2015,146404,2220,ROYAL SOCIETY FOR THE PREVENTION OF ACCIDENTS,ROY006,Engineering Manager,Training Expenses,0060,PLAYGROUND INSPECTION COURSE,PROCLI,Property & Client,00231,Property & Client BU
http://statistics.data.gov.uk/id/local-authority/16UF,Eden District Council,20/11/2015,146419,1128.1,CUMBRIAN NEWSPAPERS LTD,CUM024,Human Resources Manager,Advertising,0050,SITUATIONS VACANT ADVERT`,CENTRA,Central Expenses,00208,Staff Recruitment
http://statistics.data.gov.uk/id/local-authority/16UF,Eden District Council,20/11/2015,146435,1120.01,HEATONS OFFICE SOLUTIONS LTD,LAK004,Communities Manager,Community engagement development,2042,STATIONERY/PAPER/REDESTAL,COMDEV,Community Development & Engagement,01056,Consultation
http://statistics.data.gov.uk/id/local-authority/16UF,Eden District Council,20/11/2015,146614,19107.48,CUMBRIA WASTE RECYCLING LTD,CUM022,Engineering Manager,Recycling - Bag & Box,3600,GB-7-15/16,RECYCL,Recycling,03047,Recycling
http://statistics.data.gov.uk/id/local-authority/16UF,Eden District Council,20/11/2015,146615,21590.98,CUMBRIA WASTE RECYCLING LTD,CUM022,Engineering Manager,Recycling - Garden Waste,3602,GW-7-15/16,RECYCL,Recycling,03047,Recycling
http://statistics.data.gov.uk/id/local-authority/16UF,Eden District Council,20/11/2015,146619,2000,NEOPOST LIMITED,NEO001,Corporate Services Manager,Postages,2054,FRANKING MACHINE REFILLS,CENTRA,Central Expenses,00205,Postages Town Hall
http://statistics.data.gov.uk/id/local-authority/16UF,Eden District Council,20/11/2015,146630,619.64,PRINT IMAGE NETWORK LTD,PRI011,Legal Services Manager,Printing and stationary,2037,EDEN CANVASS ITR MAILINGS 2015,REGELE,Register of Electors,01001,Register of Electors
http://statistics.data.gov.uk/id/local-authority/16UF,Eden District Council,20/11/2015,146634,617.47,BRITISH GAS BUSINESS,BRI032,Engineering Manager,Gas,1023,town hall,ADMBLD,Administrative Buildings,00500,Town Hall
http://statistics.data.gov.uk/id/local-authority/16UF,Eden District Council,20/11/2015,146652,560.82,UNITED UTILITIES WATER LTD,UNI008,Engineering Manager,Water charges � metered,1032,PCS KIRKBY STEPHEN 04.08.15-31.10.15,PUBCON,Public Conveniences,02283,Kirkby Stephen Stoneshot Public Conv
http://statistics.data.gov.uk/id/local-authority/16UF,Eden District Council,20/11/2015,146564,17186.19,AMEY PLC,TFE001,Environmental Services,Street Cleaning Contract,3100,M-SC44,APFAIR,Appleby Fair,03036,Appleby Fair
http://statistics.data.gov.uk/id/local-authority/16UF,Eden District Council,20/11/2015,146565,65730.18,AMEY PLC,TFE001,Engineering Manager,Contract refuse collection,3003,M-RC44,REFCOL,Refuse Collection,03050,Clinical Expenditure
http://statistics.data.gov.uk/id/local-authority/16UF,Eden District Council,20/11/2015,146568,11950,MR JAN CARDY (NORTHBUILD),CAR076,Environmental Services,Decent Homes Grants,5524,FINAL PAYMENT  ALSTON,DIREGR,1996 Discretionary Renovation Grants,06034,1996 Discretionary Renovation Grants
http://statistics.data.gov.uk/id/local-authority/16UF,Eden District Council,20/11/2015,146570,2906.6,AMEY PLC,TFE001,Engineering Manager,FL  Contract,3300,FL-08/2015,FOOLIG,Footway Lighting,02258,Footway lighting
http://statistics.data.gov.uk/id/local-authority/16UF,Eden District Council,20/11/2015,146571,1315,THYSSENKRUPP ENCASA,THY001,Environmental Services,Capital grants,5505,INTERIM PAYMENT ,MEREGR,1996 Mandatory Renovation Grants,06035,Disabled Facility Grants
http://statistics.data.gov.uk/id/local-authority/16UF,Eden District Council,20/11/2015,146572,689,MCDOUGALL BUILDING CONTRACTORS,MCD002,Environmental Services,Capital grants,5505,FINAL PAYMENT ,MEREGR,1996 Mandatory Renovation Grants,06035,Disabled Facility Grants
http://statistics.data.gov.uk/id/local-authority/16UF,Eden District Council,20/11/2015,146573,3653.5,CARLISLE CITY COUNCIL,CAR015,Engineering Manager,Cash collection,2156,EDEN OFF ST CASH COLLECTION 2ND QUARTER,OFFSTR,Vehicle Parking Off Street,02167,Vehicle parking
http://statistics.data.gov.uk/id/local-authority/16UF,Eden District Council,20/11/2015,146578,616,DENISE CALVERT LTD,CAL019,Revenue/Benefits Manager,Supplies general,2015,2 DAYS W/E 06.11.15,CTXBEN,Council Tax Benefits,01164,Local Council Tax Scheme
http://statistics.data.gov.uk/id/local-authority/16UF,Eden District Council,20/11/2015,146579,602,DENISE CALVERT LTD,CAL019,Revenue/Benefits Manager,Supplies general,2015,2 DAYS W/E 30.10.15,CTXBEN,Council Tax Benefits,01164,Local Council Tax Scheme
http://statistics.data.gov.uk/id/local-authority/16UF,Eden District Council,20/11/2015,146583,625,QUONDAM ARTS TRUST,QUO001,Communities Manager,Balance Sheet entry BS,6003,25% FINAL PAYMENT EDEN COMMUNITY FUND,comfnd,Community Fund,10400,Community Fund
http://statistics.data.gov.uk/id/local-authority/16UF,Eden District Council,20/11/2015,146592,2008,CUMBRIA WASTE RECYCLING LTD,CUM022,Engineering Manager,Garden Waste Skips,2014,GREEN WASTE VARIOUS SITES OCT 15,RECYCL,Recycling,03047,Recycling
http://statistics.data.gov.uk/id/local-authority/16UF,Eden District Council,20/11/2015,146597,14929.43,AMEY PLC,TFE001,Engineering Manager,Window cleaning,1040,2015-BC-11,PUBCON,Public Conveniences,02630,Disabled Toilet Moot Hall Appleby
http://statistics.data.gov.uk/id/local-authority/16UF,Eden District Council,20/11/2015,146603,750,PENRITH CRICKET SPORTS AND SOCIAL CLUB,PEN023,Communities Manager,Balance Sheet entry BS,6003,FINAL 25% EDEN COMMUNITY FUND,comfnd,Community Fund,10400,Community Fund
http://statistics.data.gov.uk/id/local-authority/16UF,Eden District Council,20/11/2015,146606,869.19,AMEY PLC,TFE001,Environmental Services,Dog Contract O.O.H retainer,3200,KENNELLIN/STRAYS NOV 15,CODOGS,Community Wardens,03045,Dog Control
http://statistics.data.gov.uk/id/local-authority/16UF,Eden District Council,20/11/2015,145553,869.19,AMEY PLC,TFE001,Environmental Services,Dog Contract O.O.H retainer,3200,STRAY DOG COLLECTION SEPT 2015,CODOGS,Community Wardens,03045,Dog Control
http://statistics.data.gov.uk/id/local-authority/16UF,Eden District Council,20/11/2015,146097,869.19,AMEY PLC,TFE001,Environmental Services,Dog Contract O.O.H retainer,3200,KENNELLING/STRAY DOGS OCT 15,CODOGS,Community Wardens,03045,Dog Control
http://statistics.data.gov.uk/id/local-authority/16UF,Eden District Council,20/11/2015,146312,742,DENISE CALVERT LTD,CAL019,Revenue/Benefits Manager,Supplies general,2015,2 DAYS W/E 23/10/15,CTXBEN,Council Tax Benefits,01164,Local Council Tax Scheme
http://statistics.data.gov.uk/id/local-authority/16UF,Eden District Council,20/11/2015,146336,24572.74,EDEN HOUSING ASSOCIATION LTD,EDE001,Environmental Services,Other charges for services,2047,HOMLESSNESS ADVICE 16.07.15 - 04.10.15,HOMLES,Homelessness,02296,Homelessness Grant Fund
http://statistics.data.gov.uk/id/local-authority/16UF,Eden District Council,20/11/2015,146341,509.9,PHIL DAVIES CONSULTANCY,DAV036,Human Resources Manager,Training Expenses,0060,DEVELOPMENT WORKSHOP 07.10.15,STADEV,Staff Development,00225,Staff Training Communities
http://statistics.data.gov.uk/id/local-authority/16UF,Eden District Council,20/11/2015,146465,833,CUMBRIA RURAL HOUSING TRUST,CUM020,Environmental Services,Grants and contributions,2079,ENABLING SLA 2014/16,OHOUSG,Housing Delivery,02298,Cumbria Rural Housing Trust (CRHT)
http://statistics.data.gov.uk/id/local-authority/16UF,Eden District Council,20/11/2015,146468,912,WALTON GOODLAND LTD,WAL008,Financial Services Manager,Professional fees,2045,FRENCHFIELS STADIUM/APPLEBY HERITAGE CEN,INSURA,Insurance,01098,Insurance
http://statistics.data.gov.uk/id/local-authority/16UF,Eden District Council,20/11/2015,146469,695,LAW SOCIETY,LAW001,Human Resources Manager,Advertising,0050,LAW SOCIETY JOBS ADVERT 26.10.15,CENTRA,Central Expenses,00208,Staff Recruitment
http://statistics.data.gov.uk/id/local-authority/16UF,Eden District Council,20/11/2015,146470,1240,CUMBRIA COUNTY COUNCIL,CCC002,Engineering Manager,Professional fees,2045,Professional fees,LANDCH,Land Charges,01002,Land Charges
http://statistics.data.gov.uk/id/local-authority/16UF,Eden District Council,20/11/2015,146502,10690.81,NORTH COUNTRY LEISURE,NCL001,Financial Services Manager,Balance Sheet entry BS,6003,VALUATION 6 OCTOBER 15,ARTLEI,arts and Leisure,10181,GF Capital Receipts
http://statistics.data.gov.uk/id/local-authority/16UF,Eden District Council,20/11/2015,146503,7500,NENTHEAD CHAPEL COMMUNITY PROJECT,NEN008,Communities Manager,Balance Sheet entry BS,6003,75%  PAYMENT EDEN COMMUNITY FUND,comfnd,Community Fund,10400,Community Fund
http://statistics.data.gov.uk/id/local-authority/16UF,Eden District Council,20/11/2015,146741,627.21,GREYSTOKE VILLAGE HALL,GRE016,Engineering Manager,VRC Payments,2103, APRIL- SEPTEMBER,RECYCL,Recycling,03047,Recycling
http://statistics.data.gov.uk/id/local-authority/16UF,Eden District Council,20/11/2015,146749,513.31,LAZONBY PARISH COUNCIL,LAZ002,Engineering Manager,VRC Payments,2103, APRIL- SEPTEMBER,RECYCL,Recycling,03047,Recycling
http://statistics.data.gov.uk/id/local-authority/16UF,Eden District Council,20/11/2015,146760,551.8,PLUMPTON PRIMARY SCHOOL,DAV005,Engineering Manager,VRC Payments,2103, APRIL- SEPTEMBER,RECYCL,Recycling,03047,Recycling
http://statistics.data.gov.uk/id/local-authority/16UF,Eden District Council,20/11/2015,146762,556.82,SHAP PARISH COUNCIL,SHA008,Engineering Manager,VRC Payments,2103, APRIL- SEPTEMBER,RECYCL,Recycling,03047,Recycling
http://statistics.data.gov.uk/id/local-authority/16UF,Eden District Council,20/11/2015,146767,512.69,TEBAY COMMUNITY PRIMARY SCHOOL,TEB006,Engineering Manager,VRC Payments,2103, APRIL- SEPTEMBER,RECYCL,Recycling,03047,Recycling
http://statistics.data.gov.uk/id/local-authority/16UF,Eden District Council,19/11/2015,146808,508,BUSY BEES CHILDCARE VOUCHERS,BUS004,Planning Services,Child Care Voucher Scheme,0005,V-0002201712 NOV 15 DDR CHILDCARE VOUCHERS,PLASER,Planning Services,00304,Planning Services
http://statistics.data.gov.uk/id/local-authority/16UF,Eden District Council,27/11/2015,146791,23100,CORE HEALTH & FITNESS TRADING LTD,STA037,Communities Manager,Equipment � purchase,2000,21 x EXERCISE CYCLES,RENEWALS,Repairs & Renewals Fund,06627,Leisure Equipment & Maintenance
http://statistics.data.gov.uk/id/local-authority/16UF,Eden District Council,27/11/2015,146811,1120,IAN CANNON LTD,CAN004,Engineering Manager,Bank-Refurbishment,2009,PRESSURE WASH BRING SITES,RECYCL,Recycling,03047,Recycling
http://statistics.data.gov.uk/id/local-authority/16UF,Eden District Council,27/11/2015,145726,850,BAINES WILSON,BAI007,Legal Services Manager,Professional fees,2045,LEGAL FEES UNIT 17 BOWEBANK WAY,LEGSER,Legal Services,00201,Legal & Committee
http://statistics.data.gov.uk/id/local-authority/16UF,Eden District Council,27/11/2015,145979,1745,R BRENNAND ENGINEERING LIMITED,BRE004,Engineering Manager,Rent,1028,RENT/MAINTENANCE OCT - DEC 2015,ADMBLD,Administrative Buildings,00504,Kirkby Thore Store
http://statistics.data.gov.uk/id/local-authority/16UF,Eden District Council,27/11/2015,146649,8108.75,CLICK NETHERFIELD LTD,CLI008,Communities Manager,Balance Sheet entry BS,6003,SUPPLY/INSTALL/DELIVER PRISM,MUSEUM,Museum,10342,PENRITH MUSEUM GRANT FUND
http://statistics.data.gov.uk/id/local-authority/16UF,Eden District Council,27/11/2015,146782,7493.46,CUMBRIA WASTE RECYCLING LTD,CUM022,Engineering Manager,Recycling  - Bring Sites,3601,BS-38,RECYCL,Recycling,03047,Recycling
http://statistics.data.gov.uk/id/local-authority/16UF,Eden District Council,27/11/2015,146785,3750,CHARTERHOUSE DEVELOPMENTS LTD,CHA033,Environmental Services,Empty Property Grants,5527,INTERIM PAYMENT WESTMOLAND HOUSE SHAP,DIREGR,1996 Discretionary Renovation Grants,06034,1996 Discretionary Renovation Grants
http://statistics.data.gov.uk/id/local-authority/16UF,Eden District Council,27/11/2015,146575,1094.25,ROYAL MAIL NW,ROY001,Revenue/Benefits Manager,Postages,2054,POSTAGE 14.10 -03.11.15,REVBEN,Revenue & Benefits,00106,Revenues
http://statistics.data.gov.uk/id/local-authority/16UF,Eden District Council,27/11/2015,146590,525,OVALTECH LTD,OVA001,Information Technology Manager,Web Services,2065,WEB BENEFITS CALCULATOR PHP 15/16,INFTEC,Information Technology,00102,Information Technology
http://statistics.data.gov.uk/id/local-authority/16UF,Eden District Council,27/11/2015,146622,800,POSITIVE PLANNING SOLUTIONS LTD,POS007,Planning Services,Professional fees,2045,4 DAYS @ £200.00,DEVCOE,Development Control & Enforcement,03010,Development Control & Enforcement
http://statistics.data.gov.uk/id/local-authority/16UF,Eden District Council,27/11/2015,146659,1254.88,NPOWER LTD,NPO001,Engineering Manager,Electricity,1022,TOWN HALL 01.10.15-03.11.15,ADMBLD,Administrative Buildings,00500,Town Hall
http://statistics.data.gov.uk/id/local-authority/16UF,Eden District Council,27/11/2015,146662,740.71,NPOWER LTD,NPO001,Engineering Manager,Electricity,1022,MANSION HOUSE 01.10.15-31.10.15,ADMBLD,Administrative Buildings,00502,Mansion House
http://statistics.data.gov.uk/id/local-authority/16UF,Eden District Council,27/11/2015,146781,880.35,RENTOKIL INITIAL PEST CONTROL,REN009,Environmental Services,Pest Control,3400,PREMISES DECEMBER 2015,PESCON,Pest Control,03043,Pest Control
http://statistics.data.gov.uk/id/local-authority/16UF,Eden District Council,27/11/2015,146793,966,PAUL HOLMES ELECTRICAL,PAU006,Environmental Services,Decent Homes Grants,5524,130048/,DIREGR,1996 Discretionary Renovation Grants,06034,1996 Discretionary Renovation Grants
http://statistics.data.gov.uk/id/local-authority/16UF,Eden District Council,27/11/2015,146440,17234.26,WSP PARSONS BRINCKERHOFF LTD,WSP001,Environmental Services,Professional fees,2045,EDEN HEAT NETWORK FEASABILITY STUDY,POLCNL,Pollution Control,03090,Heat Network Funding
http://statistics.data.gov.uk/id/local-authority/16UF,Eden District Council,27/11/2015,146443,839.02,VENN GROUP LIMITED,VEN003,Legal Services Manager,Agency Staff,0003,W/E 01/11/15 TIMESHEET A521661,LEGSER,Legal Services,00201,Legal & Committee
http://statistics.data.gov.uk/id/local-authority/16UF,Eden District Council,27/11/2015,146567,4762.61,AMEY PLC,TFE001,Planning Services,Printing and stationary,2037,SITE WORKS/VARIOUS LOCATIONS,LOPLPO,Local Plans & Policy,03004,Eden Local Plan
http://statistics.data.gov.uk/id/local-authority/16UF,Eden District Council,27/11/2015,146627,843.89,VENN GROUP LIMITED,VEN003,Legal Services Manager,Agency Staff,0003,R POWER TIMESHEET A523799 W/E 8/11/15,LEGSER,Legal Services,00201,Legal & Committee
http://statistics.data.gov.uk/id/local-authority/16UF,Eden District Council,27/11/2015,146771,20000,THE POLICE & CRIME COMMISSIONER FOR CUMBRIA,THE006,Communities Manager,Grants and contributions,2079,SARC FUNDING 2015-16,COMDEV,Community Development & Engagement,01148,Sexual Assault Referral Service
http://statistics.data.gov.uk/id/local-authority/16UF,Eden District Council,27/11/2015,146777,16136.72,AMEY PLC,TFE001,Engineering Manager,GM INSPECTIONS & MAINTENANCE,1089,M-GM44,CLCHYD,Closed Church Yards,02246,War Memorials
http://statistics.data.gov.uk/id/local-authority/16UF,Eden District Council,27/11/2015,146787,5823.36,AMEY PLC,TFE001,Engineering Manager,Grounds Maintenance Contract Bed Plants,1090,GM77,PARKOS,Parks and Open Spaces,02129,Open spaces
http://statistics.data.gov.uk/id/local-authority/16UF,Eden District Council,27/11/2015,146794,970,TOP NOTCH CONTRACTORS LTD,TOP003,Environmental Services,Capital grants,5505,150026/CROFT CLOSE BROUGH,MEREGR,1996 Mandatory Renovation Grants,06035,Disabled Facility Grants
http://statistics.data.gov.uk/id/local-authority/16UF,Eden District Council,27/11/2015,146508,13266.65,AMEY PLC,TFE001,Engineering Manager,Building works,5502,SUPPLY & INSTALL LIGHT COLUMNS,FOOLIG,Footway Lighting,06149,Cap Footway Lighting
http://statistics.data.gov.uk/id/local-authority/16UF,Eden District Council,27/11/2015,146512,876.78,AMEY PLC,TFE001,Communities Manager,Building Maintenance,1000,REMOVE AND REPLACE 6M LIGHT COLUMN,LEICEN,Eden Leisure Centre & Appleby Swimming P,02101,Frenchfield - Building
http://statistics.data.gov.uk/id/local-authority/16UF,Eden District Council,27/11/2015,146639,2333,DURHAM COUNTY COUNCIL,DUR008,Planning Services,Grants and contributions,2079,CONTRIBUTION HERITAGE LOTTERY FUNDAS,CONSER,Environmental Enhancement & Conservation,03016,North Pennines AONB Initiative
http://statistics.data.gov.uk/id/local-authority/16UF,Eden District Council,27/11/2015,146640,8732.65,CARLISLE CITY COUNCIL,CAR015,Financial Services Manager,Balance Sheet entry BS,6003,REIMBURS. PARLIAMENTARY ELECTION COSTS,HOLD A/C'S,Holding Accounts,10304,Parliam Election Exp
http://statistics.data.gov.uk/id/local-authority/16UF,Eden District Council,27/11/2015,146797,1695.57,LOCAL GOVERNMENT ASSOCIATION,LOC005,Engineering Manager,Claims,2100,PROPERTY SEARCHES LITIGATION/FULBRIGHT/B,LANDCH,Land Charges,01002,Land Charges
http://statistics.data.gov.uk/id/local-authority/16UF,Eden District Council,27/11/2015,146799,1857.5,CAPITA PROPERTY & INFRASTRUCTURE LTD,CAP002,Planning Services,Professional fees,2045,ARBORICULTURAL SERVICES NOVEMBER 2015,CONSER,Environmental Enhancement & Conservation,03012,Aboricutural Advice
http://statistics.data.gov.uk/id/local-authority/16UF,Eden District Council,27/11/2015,146800,792,CUMBRIA COUNTY COUNCIL,CCC002,Communities Manager,Advertising,2086,CONTRIBUTION TO SEE MORE CYCLING GUIDES,TOUPRO,Tourism Promotion,02056,Eden Tourism
http://statistics.data.gov.uk/id/local-authority/16UF,Eden District Council,27/11/2015,146806,1860,EDS (ELECTRICAL-DATA-SECURITY) LTD,EDS001,Engineering Manager,Auto door mount,1025,TURNSTILE MAINT 15/16 PCS POOLEY BRIDGE,PUBCON,Public Conveniences,02273,Pooley Bridge Public Convenience
http://statistics.data.gov.uk/id/local-authority/16UF,Eden District Council,27/11/2015,146931,1550,DOLPHIN MOBILITY YORKSHIRE & CUMBRIA LTD,DOL001,Environmental Services,Capital grants,5505,150029/,MEREGR,1996 Mandatory Renovation Grants,06035,Disabled Facility Grants
http://statistics.data.gov.uk/id/local-authority/16UF,Eden District Council,27/11/2015,146936,5756,ENTERPRISE PROSPECTS LTD,ENT004,Chief Executive's,Agency Staff,0003,ROBIN HOOPER NOVEMBER 2015,CHIEXE,Chief Executive,00050,Chief Executive
http://statistics.data.gov.uk/id/local-authority/16UF,Eden District Council,27/11/2015,146940,4375,DOLPHIN MOBILITY YORKSHIRE & CUMBRIA LTD,DOL001,Environmental Services,Capital grants,5505,150030/4 ,MEREGR,1996 Mandatory Renovation Grants,06035,Disabled Facility Grants
http://statistics.data.gov.uk/id/local-authority/16UF,Eden District Council,27/11/2015,146941,3968.33,CUMBRIA WASTE RECYCLING LTD,CUM022,Engineering Manager,material price fluctuations,3604,F-07-15/16,RECYCL,Recycling,03047,Recycling
http://statistics.data.gov.uk/id/local-authority/16UF,Eden District Council,27/11/2015,146942,5619.97,CUMBRIA WASTE RECYCLING LTD,CUM022,Engineering Manager,material price fluctuations,3604,BS-F-15-15/16,RECYCL,Recycling,03047,Recycling
http://statistics.data.gov.uk/id/local-authority/16UF,Eden District Council,27/11/2015,146959,3500,HAYMARKET MEDIA GROUP LTD,HAY019,Human Resources Manager,Advertising,0050,RECRUITMENT ADVERTS,CENTRA,Central Expenses,00208,Staff Recruitment
http://statistics.data.gov.uk/id/local-authority/16UF,Eden District Council,27/11/2015,146960,9110.16,AMEY PLC,TFE001,Engineering Manager,ADHOC WORKS FOR BURIALS,1079,GM78,CEMETE,Cemeteries,02229,Alston Moor Cemetery
http://statistics.data.gov.uk/id/local-authority/16UF,Eden District Council,27/11/2015,146991,2000,NEOPOST LIMITED,NEO001,Corporate Services Manager,Postages,2054,FRANKING MACHINE REFILL,CENTRA,Central Expenses,00205,Postages Town Hall
http://statistics.data.gov.uk/id/local-authority/16UF,Eden District Council,27/11/2015,149067,11650,LGPS,LGP001,Financial Services Manager,Additional Pensions,0030,Additional Employers Superannuation Cont,CORPOR,Corporate Costs,01179,Additional Employers Superannuation Cont
http://statistics.data.gov.uk/id/local-authority/16UF,Eden District Council,27/11/2015,149331,1153.81,Santander Bank,SAN001,Financial Services Manager,Bank charges,2088,Bank charges nov,CORPOR,Corporate Costs,01064,Bank Charges
